fUSD/lending_fUSD_20260511
["ID","MTS","AMOUNT","RATE_DAILY","PERIOD"]
[422034084,1778506161000,-567.91297184,9.372e-05,2]
[422034091,1778506231000,-1843.9,9.753e-05,2]
[422034095,1778506231000,-5000.0,9.833e-05,2]
[422034096,1778506231000,-250.0,9.833e-05,2]
[422034098,1778506231000,-166.91,9.901e-05,2]
[422034088,1778506231000,-732.46,9.52e-05,2]
[422034097,1778506231000,-334.22796898,9.833e-05,2]
[422034087,1778506231000,-208.15897961,9.438e-05,2]
[422034094,1778506231000,-300.0,9.832e-05,2]
[422034092,1778506231000,-1200.0,9.81e-05,2]
[422034093,1778506231000,-732.46,9.811e-05,2]
[422034089,1778506231000,-320.38,9.537e-05,2]
[422034090,1778506231000,-2343.97,9.708e-05,2]
[422034086,1778506231000,-1000.0,9.426e-05,2]
[422034085,1778506231000,-2271.60543877,9.372e-05,2]
[422034099,1778506231000,-27927.34544023,9.937e-05,2]
[422034111,1778506231000,-500.0,0.00010425,2]
[422034101,1778506231000,-24291.21,9.947e-05,2]
[422034115,1778506231000,-500.0,0.00010425,2]
[422034108,1778506231000,-174.8,0.00010425,2]
[422034109,1778506231000,-500.0,0.00010425,2]
[422034100,1778506231000,-150.0,9.946e-05,2]
[422034116,1778506231000,-500.0,0.00010425,2]
[422034110,1778506231000,-602.57091286,0.00010425,2]
[422034107,1778506231000,-732.46,0.00010392,2]
[422034113,1778506231000,-500.0,0.00010425,2]
[422034114,1778506231000,-163.82413912,0.00010425,2]
[422034103,1778506231000,-732.46,0.00010101,2]
[422034105,1778506231000,-1894.18,0.00010278,2]
[422034106,1778506231000,-158.01,0.0001029,2]
[422034104,1778506231000,-540.06,0.00010266,2]
[422034102,1778506231000,-1894.18,0.00010027,2]
[422034112,1778506231000,-500.0,0.00010425,2]
[422034119,1778506232000,-500.0,0.00010425,2]
[422034118,1778506232000,-500.0,0.00010425,2]
[422034117,1778506232000,-500.0,0.00010425,2]
[422034120,1778506232000,-154.70629453,0.00010425,2]
[422034121,1778506232000,-2000.0,0.00010485,2]
[422034122,1778506232000,-1894.18,0.00010529,2]
[422034124,1778506232000,-175.0,0.00010682,2]
[422034128,1778506232000,-12080.86819929,0.000107,2]
[422034123,1778506232000,-732.46,0.00010682,2]
[422034130,1778506232000,-1254.41808677,0.000107,2]
[422034132,1778506232000,-38584.71987135,0.000107,2]
[422034131,1778506232000,-18651.74895966,0.000107,2]
[422034125,1778506232000,-2541.6736,0.00010685,2]
[422034127,1778506232000,-35932.3132694,0.000107,2]
[422034126,1778506232000,-58873.71359295,0.000107,2]
[422034129,1778506232000,-29640.2157738,0.000107,2]
[422034137,1778506238000,-26394.86598346,0.000107,2]
[422034136,1778506238000,-13826.16660878,0.000107,2]
[422034202,1778506240000,-500.0,0.00011273,2]
[422034212,1778506240000,-1000.0,0.00011821,2]
[422034199,1778506240000,-385.21873236,0.00011273,2]
[422034198,1778506240000,-500.0,0.00011273,2]
[422034200,1778506240000,-500.0,0.00011273,2]
[422034201,1778506240000,-500.0,0.00011273,2]
[422034204,1778506240000,-500.92806458,0.00011273,2]
[422034209,1778506240000,-500.0,0.00011586,2]
[422034207,1778506240000,-166.91,0.00011535,2]
[422034214,1778506240000,-1000.0,0.00011821,2]
[422034211,1778506240000,-2000.0,0.0001165,2]
[422034208,1778506240000,-150.0,0.00011555,2]
[422034206,1778506240000,-504.57611816,0.00011477,2]
[422034205,1778506240000,-573.48854348,0.00011273,2]
[422034196,1778506240000,-247.64435383,0.00011273,2]
[422034213,1778506240000,-1000.0,0.00011821,2]
[422034210,1778506240000,-241.96,0.00011586,2]
[422034215,1778506240000,-2351.0,0.0001187,2]
[422034217,1778506240000,-320.38,0.00011921,2]
[422034216,1778506240000,-425.70802278,0.000119,2]
[422034221,1778506240000,-500.0,0.00011973,2]
[422034223,1778506240000,-151.0,0.00012,2]
[422034220,1778506240000,-500.0,0.00011973,2]
[422034203,1778506240000,-319.73881309,0.00011273,2]
[422034192,1778506240000,-297.677205,0.00011266,2]
[422034191,1778506240000,-297.677205,0.00011266,2]
[422034193,1778506240000,-150.0,0.00011266,2]
[422034222,1778506240000,-550709.99405816,0.00012,2]
[422034169,1778506240000,-177552.11553246,0.000107,2]
[422034170,1778506240000,-498.17682034,0.000107,2]
[422034173,1778506240000,-320.38,0.00010729,2]
[422034172,1778506240000,-166.91,0.00010718,2]
[422034175,1778506240000,-1680.0,0.00010791,2]
[422034174,1778506240000,-1894.18,0.00010779,2]
[422034171,1778506240000,-1672.61888549,0.000107,2]
[422034177,1778506240000,-7636.61527826,0.000109,2]
[422034176,1778506240000,-157.65,0.00010872,2]
[422034179,1778506240000,-255.0,0.0001094,2]
[422034197,1778506240000,-501.52594068,0.00011273,2]
[422034178,1778506240000,-500.0,0.00010929,2]
[422034181,1778506240000,-150.0,0.00010959,2]
[422034189,1778506240000,-297.677205,0.00011266,2]
[422034185,1778506240000,-10869.09764972,0.00011099,2]
[422034187,1778506240000,-732.46,0.00011263,2]
[422034183,1778506240000,-1894.18,0.0001103,2]
[422034186,1778506240000,-500.0,0.00011203,2]
[422034184,1778506240000,-5874.38909825,0.00011099,2]
[422034190,1778506240000,-297.677205,0.00011266,2]
[422034188,1778506240000,-455336.008258,0.00011266,2]
[422034194,1778506240000,-291.949964,0.00011267,2]
[422034195,1778506240000,-500.0,0.00011273,2]
[422034182,1778506240000,-732.46,0.00010972,2]
[422034218,1778506240000,-172.26154201,0.0001194,2]
[422034180,1778506240000,-150.0,0.00010959,2]
[422034224,1778506240000,-209.745422,0.00012,2]
[422034251,1778506240000,-500.0,0.00013698,2]
[422034255,1778506240000,-500.0,0.00013698,2]
[422034249,1778506240000,-191.07480105,0.00013698,2]
[422034252,1778506240000,-500.0,0.00013698,2]
[422034254,1778506240000,-500.0,0.00013698,2]
[422034259,1778506240000,-500.0,0.00013698,2]
[422034256,1778506240000,-500.0,0.00013698,2]
[422034260,1778506240000,-500.0,0.00013698,2]
[422034268,1778506240000,-166.66,0.00013699,2]
[422034261,1778506240000,-506.44557619,0.00013698,2]
[422034266,1778506240000,-500.0,0.00013698,2]
[422034258,1778506240000,-500.0,0.00013698,2]
[422034265,1778506240000,-500.0,0.00013698,2]
[422034271,1778506240000,-167.31951096,0.00013699,2]
[422034270,1778506240000,-151.0,0.00013699,2]
[422034262,1778506240000,-635.18083882,0.00013698,2]
[422034276,1778506240000,-250.0,0.00014,2]
[422034267,1778506240000,-200.0,0.00013699,2]
[422034269,1778506240000,-151.0,0.00013699,2]
[422034272,1778506240000,-158.01,0.0001372,2]
[422034275,1778506240000,-2000.0,0.00013979,2]
[422034274,1778506240000,-5874.38909823,0.00013856,2]
[422034273,1778506240000,-10869.09764972,0.00013856,2]
[422034225,1778506240000,-297.677205,0.00012,2]
[422034263,1778506240000,-500.0,0.00013698,2]
[422034253,1778506240000,-158.19593107,0.00013698,2]
[422034264,1778506240000,-500.0,0.00013698,2]
[422034250,1778506240000,-500.0,0.00013698,2]
[422034257,1778506240000,-500.0,0.00013698,2]
[422034219,1778506240000,-502.24715817,0.00011973,2]
[422034227,1778506240000,-297.677205,0.00012,2]
[422034229,1778506240000,-297.677205,0.00012,2]
[422034226,1778506240000,-209.745422,0.00012,2]
[422034228,1778506240000,-209.745422,0.00012,2]
[422034235,1778506240000,-1924.0,0.00012329,2]
[422034230,1778506240000,-209.745422,0.00012,2]
[422034233,1778506240000,-433.0,0.00012034,2]
[422034234,1778506240000,-212.99,0.0001205,2]
[422034231,1778506240000,-297.677205,0.00012,2]
[422034236,1778506240000,-1500.0,0.00012368,2]
[422034232,1778506240000,-158.01,0.00012005,2]
[422034243,1778506240000,-966.89348146,0.00012916,2]
[422034246,1778506240000,-320.38,0.00013114,2]
[422034237,1778506240000,-1283.73471914,0.00012368,2]
[422034241,1778506240000,-2000.0,0.00012815,2]
[422034238,1778506240000,-1500.0,0.00012368,2]
[422034247,1778506240000,-736.0,0.00013238,2]
[422034239,1778506240000,-1000.0,0.00012521,2]
[422034248,1778506240000,-1485.83123727,0.00013464,2]
[422034244,1778506240000,-3292.0,0.00013057,2]
[422034242,1778506240000,-2000.0,0.00012916,2]
[422034240,1778506240000,-502.82734984,0.00012521,2]
[422034245,1778506240000,-595.50617247,0.00013068,2]
[422034314,1778506241000,-298.03,0.0001574,2]
[422034316,1778506241000,-300.0,0.00016,2]
[422034317,1778506241000,-157.84052447,0.00016,2]
[422034315,1778506241000,-632.300873,0.00015744,2]
[422034312,1778506241000,-200.0,0.00015518,2]
[422034308,1778506241000,-2005.9555727,0.0001497,2]
[422034310,1778506241000,-450.0,0.00015068,2]
[422034311,1778506241000,-158.01,0.00015435,2]
[422034306,1778506241000,-151.0,0.0001497,2]
[422034318,1778506241000,-500.0,0.00016028,2]
[422034313,1778506241000,-2080.17592889,0.00015518,2]
[422034319,1778506241000,-1000.0,0.00016032,2]
[422034333,1778506241000,-150.0,0.00016274,2]
[422034323,1778506241000,-200.44,0.00016101,2]
[422034321,1778506241000,-2157.14243826,0.00016066,2]
[422034324,1778506241000,-150.99,0.00016116,2]
[422034322,1778506241000,-157.84052447,0.000161,2]
[422034327,1778506241000,-9999.99,0.00016116,2]
[422034325,1778506241000,-7640.07,0.00016116,2]
[422034328,1778506241000,-150.0,0.00016137,2]
[422034326,1778506241000,-49300.2,0.00016116,2]
[422034329,1778506241000,-157.84052447,0.000162,2]
[422034330,1778506241000,-150.0,0.00016274,2]
[422034331,1778506241000,-150.0,0.00016274,2]
[422034304,1778506241000,-151.0,0.0001497,2]
[422034320,1778506241000,-200.0,0.00016066,2]
[422034307,1778506241000,-151.0,0.0001497,2]
[422034281,1778506241000,-1159.0,0.00014561,2]
[422034303,1778506241000,-151.0,0.0001497,2]
[422034280,1778506241000,-446.53624138,0.0001451,2]
[422034279,1778506241000,-540.06,0.00014372,2]
[422034342,1778506241000,-151.0,0.00016438,2]
[422034277,1778506241000,-320.38,0.00014306,2]
[422034283,1778506241000,-200.0,0.0001497,2]
[422034278,1778506241000,-1487.0,0.00014362,2]
[422034282,1778506241000,-7636.61527823,0.00014786,2]
[422034284,1778506241000,-500.0,0.0001497,2]
[422034285,1778506241000,-500.0,0.0001497,2]
[422034288,1778506241000,-500.0,0.0001497,2]
[422034287,1778506241000,-151.0,0.0001497,2]
[422034286,1778506241000,-500.0,0.0001497,2]
[422034294,1778506241000,-151.0,0.0001497,2]
[422034296,1778506241000,-500.0,0.0001497,2]
[422034298,1778506241000,-151.0,0.0001497,2]
[422034290,1778506241000,-500.0,0.0001497,2]
[422034292,1778506241000,-151.0,0.0001497,2]
[422034289,1778506241000,-151.0,0.0001497,2]
[422034293,1778506241000,-500.0,0.0001497,2]
[422034297,1778506241000,-151.0,0.0001497,2]
[422034291,1778506241000,-151.0,0.0001497,2]
[422034295,1778506241000,-151.0,0.0001497,2]
[422034300,1778506241000,-151.0,0.0001497,2]
[422034302,1778506241000,-151.0,0.0001497,2]
[422034299,1778506241000,-503.63032859,0.0001497,2]
[422034309,1778506241000,-1016.0,0.00015,2]
[422034301,1778506241000,-162.1794336,0.0001497,2]
[422034305,1778506241000,-151.0,0.0001497,2]
[422034341,1778506241000,-151.0,0.00016438,2]
[422034334,1778506241000,-150.0,0.00016274,2]
[422034335,1778506241000,-150.0,0.00016274,2]
[422034370,1778506241000,-151.0,0.00016438,2]
[422034376,1778506241000,-500.0,0.00016573,2]
[422034377,1778506241000,-500.0,0.00016573,2]
[422034369,1778506241000,-163.81453656,0.00016438,2]
[422034371,1778506241000,-151.0,0.00016438,2]
[422034379,1778506241000,-500.0,0.00016573,2]
[422034375,1778506241000,-500.0,0.00016573,2]
[422034374,1778506241000,-150.0,0.00016475,2]
[422034378,1778506241000,-500.0,0.00016573,2]
[422034372,1778506241000,-151.0,0.00016438,2]
[422034380,1778506241000,-150.0,0.00016575,2]
[422034392,1778506241000,-7266.98,0.00016922,2]
[422034382,1778506241000,-200.0,0.00016614,2]
[422034381,1778506241000,-969.411826,0.00016583,2]
[422034387,1778506241000,-1924.0,0.00016767,2]
[422034384,1778506241000,-150.0,0.00016676,2]
[422034389,1778506241000,-150.0,0.00016877,2]
[422034383,1778506241000,-2236.95670848,0.00016614,2]
[422034388,1778506241000,-150.0,0.00016877,2]
[422034386,1778506241000,-425.70802277,0.00016744,2]
[422034390,1778506241000,-180.44403207,0.00016912,2]
[422034391,1778506241000,-150.0,0.00016915,2]
[422034385,1778506241000,-175.42,0.00016712,2]
[422034394,1778506241000,-24999.99,0.00016922,2]
[422034395,1778506241000,-9999.99,0.00016922,2]
[422034393,1778506241000,-13798.97,0.00016922,2]
[422034332,1778506241000,-150.0,0.00016274,2]
[422034363,1778506241000,-500.11996036,0.00016438,2]
[422034357,1778506241000,-500.0,0.00016438,2]
[422034373,1778506241000,-151.0,0.00016438,2]
[422034356,1778506241000,-369.31749732,0.00016438,2]
[422034362,1778506241000,-500.39708524,0.00016438,2]
[422034337,1778506241000,-500.0,0.00016438,2]
[422034339,1778506241000,-500.0,0.00016438,2]
[422034340,1778506241000,-450.0,0.00016438,2]
[422034338,1778506241000,-501.52600275,0.00016438,2]
[422034344,1778506241000,-151.0,0.00016438,2]
[422034346,1778506241000,-151.0,0.00016438,2]
[422034354,1778506241000,-508.7582812,0.00016438,2]
[422034355,1778506241000,-501.31785303,0.00016438,2]
[422034343,1778506241000,-151.0,0.00016438,2]
[422034347,1778506241000,-151.0,0.00016438,2]
[422034353,1778506241000,-501.81621784,0.00016438,2]
[422034345,1778506241000,-151.0,0.00016438,2]
[422034350,1778506241000,-151.0,0.00016438,2]
[422034336,1778506241000,-1139.4,0.00016438,2]
[422034351,1778506241000,-151.0,0.00016438,2]
[422034348,1778506241000,-151.0,0.00016438,2]
[422034360,1778506241000,-501.07787432,0.00016438,2]
[422034366,1778506241000,-410.00190687,0.00016438,2]
[422034367,1778506241000,-500.82054847,0.00016438,2]
[422034364,1778506241000,-500.0,0.00016438,2]
[422034361,1778506241000,-518.11271274,0.00016438,2]
[422034365,1778506241000,-500.17470362,0.00016438,2]
[422034359,1778506241000,-492.99847077,0.00016438,2]
[422034358,1778506241000,-500.57551397,0.00016438,2]
[422034352,1778506241000,-151.0,0.00016438,2]
[422034349,1778506241000,-151.0,0.00016438,2]
[422034368,1778506241000,-500.21620449,0.00016438,2]
[422034436,1778506242000,-633.92117049,0.00017121,2]
[422034435,1778506242000,-5874.38909823,0.00017111,2]
[422034434,1778506242000,-10869.09764972,0.00017111,2]
[422034427,1778506242000,-1000.0,0.00016986,2]
[422034438,1778506242000,-1000.0,0.00017121,2]
[422034431,1778506242000,-150.0,0.00017078,2]
[422034433,1778506242000,-151.0,0.00017111,2]
[422034432,1778506242000,-151.0,0.00017111,2]
[422034428,1778506242000,-500.0,0.00016986,2]
[422034429,1778506242000,-1000.0,0.00016986,2]
[422034437,1778506242000,-1000.0,0.00017121,2]
[422034430,1778506242000,-2100.0,0.00017,2]
[422034440,1778506242000,-151.0,0.00017121,2]
[422034442,1778506242000,-209.745422,0.00017121,2]
[422034450,1778506242000,-200.0,0.00017162,2]
[422034444,1778506242000,-209.745422,0.00017121,2]
[422034446,1778506242000,-209.745422,0.00017121,2]
[422034443,1778506242000,-297.677205,0.00017121,2]
[422034445,1778506242000,-297.677205,0.00017121,2]
[422034441,1778506242000,-151.0,0.00017121,2]
[422034439,1778506242000,-1000.0,0.00017121,2]
[422034447,1778506242000,-297.677205,0.00017121,2]
[422034449,1778506242000,-297.677205,0.00017121,2]
[422034448,1778506242000,-209.745422,0.00017121,2]
[422034452,1778506242000,-500.73062369,0.00017173,2]
[422034418,1778506242000,-297.677205,0.00016922,2]
[422034451,1778506242000,-2319.72410669,0.00017162,2]
[422034425,1778506242000,-500.0,0.00016973,2]
[422034454,1778506242000,-500.0,0.00017173,2]
[422034421,1778506242000,-500.0,0.00016973,2]
[422034401,1778506242000,-151.0,0.00016922,2]
[422034397,1778506242000,-999.99,0.00016922,2]
[422034398,1778506242000,-9008.34,0.00016922,2]
[422034396,1778506242000,-9045.24,0.00016922,2]
[422034400,1778506242000,-151.0,0.00016922,2]
[422034403,1778506242000,-151.0,0.00016922,2]
[422034399,1778506242000,-299.99,0.00016922,4]
[422034402,1778506242000,-153.167408,0.00016922,2]
[422034404,1778506242000,-151.0,0.00016922,2]
[422034415,1778506242000,-209.745422,0.00016922,2]
[422034407,1778506242000,-1203.596986,0.00016922,2]
[422034408,1778506242000,-1203.596986,0.00016922,2]
[422034405,1778506242000,-1203.596986,0.00016922,2]
[422034416,1778506242000,-297.677205,0.00016922,2]
[422034406,1778506242000,-1203.596986,0.00016922,2]
[422034410,1778506242000,-151.0,0.00016922,2]
[422034413,1778506242000,-209.745422,0.00016922,2]
[422034411,1778506242000,-191.701488,0.00016922,2]
[422034412,1778506242000,-170.517712,0.00016922,2]
[422034409,1778506242000,-151.0,0.00016922,2]
[422034414,1778506242000,-297.677205,0.00016922,2]
[422034417,1778506242000,-209.745422,0.00016922,2]
[422034420,1778506242000,-297.677205,0.00016922,2]
[422034422,1778506242000,-500.94566276,0.00016973,2]
[422034419,1778506242000,-209.745422,0.00016922,2]
[422034423,1778506242000,-500.0,0.00016973,2]
[422034426,1778506242000,-1000.0,0.00016986,2]
[422034424,1778506242000,-500.0,0.00016973,2]
[422034455,1778506242000,-500.0,0.00017173,2]
[422034475,1778506242000,-150.0,0.00017479,2]
[422034457,1778506242000,-163.40713941,0.00017173,2]
[422034491,1778506242000,-200.0,0.0001771,2]
[422034490,1778506242000,-150.0,0.0001768,2]
[422034501,1778506242000,-704.88238657,0.00017721,2]
[422034496,1778506242000,-1000.0,0.00017721,2]
[422034494,1778506242000,-1000.0,0.00017721,2]
[422034495,1778506242000,-189.20905721,0.00017721,2]
[422034498,1778506242000,-1000.0,0.00017721,2]
[422034492,1778506242000,-2405.55389864,0.0001771,2]
[422034497,1778506242000,-573.12213179,0.00017721,2]
[422034499,1778506242000,-1000.0,0.00017721,2]
[422034503,1778506242000,-250.0,0.00017721,2]
[422034500,1778506242000,-1000.0,0.00017721,2]
[422034487,1778506242000,-596.48180787,0.00017668,2]
[422034506,1778506242000,-1000.0,0.00017721,2]
[422034512,1778506242000,-500.0,0.00018041,2]
[422034511,1778506242000,-909.65039264,0.00018,2]
[422034508,1778506242000,-150.0,0.00017781,2]
[422034509,1778506242000,-150.0,0.00017881,2]
[422034510,1778506242000,-350.0,0.00018,2]
[422034516,1778506242000,-1500.0,0.00018068,2]
[422034518,1778506242000,-1203.596986,0.00018082,2]
[422034514,1778506242000,-431.73147682,0.00018068,2]
[422034513,1778506242000,-1500.0,0.00018068,2]
[422034519,1778506242000,-1203.596986,0.00018082,2]
[422034517,1778506242000,-1203.596986,0.00018082,2]
[422034456,1778506242000,-500.0,0.00017173,2]
[422034507,1778506242000,-150.0,0.00017751,2]
[422034486,1778506242000,-1036.25927147,0.00017668,2]
[422034521,1778506242000,-150.0,0.00018082,2]
[422034489,1778506242000,-500.89185163,0.0001768,2]
[422034461,1778506242000,-500.0,0.00017173,2]
[422034460,1778506242000,-521.48822024,0.00017173,2]
[422034458,1778506242000,-500.0,0.00017173,2]
[422034453,1778506242000,-500.24786668,0.00017173,2]
[422034462,1778506242000,-500.0,0.00017173,2]
[422034463,1778506242000,-500.0,0.00017173,2]
[422034459,1778506242000,-502.08379234,0.00017173,2]
[422034488,1778506242000,-500.0,0.0001768,2]
[422034466,1778506242000,-150.0,0.00017173,2]
[422034520,1778506242000,-1203.596986,0.00018082,2]
[422034474,1778506242000,-150.0,0.00017479,2]
[422034465,1778506242000,-500.0,0.00017173,2]
[422034470,1778506242000,-150.0,0.00017178,2]
[422034464,1778506242000,-500.0,0.00017173,2]
[422034468,1778506242000,-501.17746914,0.00017173,2]
[422034483,1778506242000,-1500.0,0.00017534,2]
[422034467,1778506242000,-500.0,0.00017173,2]
[422034481,1778506242000,-503.2923281,0.00017521,2]
[422034482,1778506242000,-1500.0,0.00017534,2]
[422034485,1778506242000,-1000.0,0.00017668,2]
[422034484,1778506242000,-1500.0,0.00017534,2]
[422034478,1778506242000,-1000.0,0.00017521,2]
[422034476,1778506242000,-1000.0,0.00017521,2]
[422034472,1778506242000,-671.82,0.000172,2]
[422034469,1778506242000,-150.0,0.00017178,2]
[422034473,1778506242000,-150.0,0.00017279,2]
[422034471,1778506242000,-150.0,0.00017178,2]
[422034479,1778506242000,-1000.0,0.00017521,2]
[422034560,1778506243000,-151.0,0.00018972,2]
[422034565,1778506243000,-200.0,0.00019354,2]
[422034558,1778506243000,-7636.61527823,0.00018971,2]
[422034564,1778506243000,-9079.04892855,0.00019302,2]
[422034557,1778506243000,-1326.72763238,0.00018816,2]
[422034553,1778506243000,-2000.0,0.00018816,2]
[422034552,1778506243000,-1587.24618996,0.00018816,2]
[422034549,1778506243000,-909.65039264,0.000187,2]
[422034550,1778506243000,-200.0,0.00018806,2]
[422034548,1778506243000,-2000.0,0.00018616,2]
[422034556,1778506243000,-200.0,0.00018816,2]
[422034559,1778506243000,-151.0,0.00018972,2]
[422034575,1778506243000,-297.677213,0.00019562,2]
[422034561,1778506243000,-3000.0,0.00019178,2]
[422034562,1778506243000,-151.0,0.00019178,2]
[422034566,1778506243000,-2682.57183977,0.00019354,2]
[422034563,1778506243000,-5530.0,0.000192,3]
[422034569,1778506243000,-151.0,0.000195,2]
[422034570,1778506243000,-150.0,0.00019526,2]
[422034571,1778506243000,-4623.68,0.00019562,2]
[422034568,1778506243000,-151.0,0.000195,2]
[422034572,1778506243000,-297.677205,0.00019562,2]
[422034573,1778506243000,-297.677205,0.00019562,2]
[422034576,1778506243000,-1007.32511698,0.00019685,2]
[422034544,1778506243000,-909.65039264,0.000185,2]
[422034567,1778506243000,-2500.0,0.00019364,2]
[422034551,1778506243000,-2586.85809042,0.00018806,2]
[422034542,1778506243000,-2400.0,0.00018484,2]
[422034547,1778506243000,-961.74205325,0.00018616,2]
[422034574,1778506243000,-297.677205,0.00019562,2]
[422034530,1778506243000,-577.02048884,0.00018228,2]
[422034531,1778506243000,-200.0,0.00018258,2]
[422034523,1778506243000,-150.0,0.00018082,2]
[422034522,1778506243000,-150.0,0.00018082,2]
[422034524,1778506243000,-150.0,0.00018082,2]
[422034526,1778506243000,-1504.85382183,0.00018082,2]
[422034528,1778506243000,-1000.0,0.00018082,2]
[422034529,1778506243000,-909.65039264,0.000182,2]
[422034525,1778506243000,-150.00000001,0.00018082,2]
[422034527,1778506243000,-716.01710541,0.00018082,2]
[422034532,1778506243000,-2494.55939289,0.00018258,2]
[422034534,1778506243000,-1500.0,0.00018268,2]
[422034536,1778506243000,-1001.50869273,0.00018268,2]
[422034538,1778506243000,-350.0,0.00018268,2]
[422034537,1778506243000,-1500.0,0.00018268,2]
[422034540,1778506243000,-909.65039264,0.000184,2]
[422034543,1778506243000,-900.0,0.00018484,7]
[422034533,1778506243000,-1500.0,0.00018268,2]
[422034541,1778506243000,-1139.4,0.0001841,2]
[422034535,1778506243000,-1500.0,0.00018268,2]
[422034539,1778506243000,-1500.0,0.00018268,2]
[422034545,1778506243000,-2358.6214719,0.00018516,2]
[422034555,1778506243000,-1500.0,0.00018816,2]
[422034546,1778506243000,-3114.0,0.000186,2]
[422034554,1778506243000,-1502.51755111,0.00018816,2]
[422034577,1778506243000,-153.12137068,0.00019791,2]
[422034590,1778506243000,-400.0,0.0002,2]
[422034589,1778506243000,-2000.0,0.00019973,10]
[422034617,1778506243000,-385.0,0.00021,2]
[422034605,1778506243000,-491.18814468,0.00020675,2]
[422034610,1778506243000,-728.0,0.00021,2]
[422034612,1778506243000,-153.0,0.00021,2]
[422034611,1778506243000,-1490.0,0.00021,2]
[422034629,1778506243000,-152.748391,0.00021918,2]
[422034620,1778506243000,-1924.0,0.00021205,2]
[422034618,1778506243000,-169.0,0.00021,2]
[422034622,1778506243000,-204.0521,0.00021478,2]
[422034619,1778506243000,-789.16,0.00021145,2]
[422034621,1778506243000,-776.76,0.00021419,2]
[422034623,1778506243000,-358.83252661,0.000215,14]
[422034624,1778506243000,-697.47451866,0.000215,14]
[422034625,1778506243000,-425.70802277,0.00021588,2]
[422034627,1778506243000,-5000.0,0.00021918,2]
[422034628,1778506243000,-151.0,0.00021918,2]
[422034626,1778506243000,-500.0,0.00021875,2]
[422034630,1778506243000,-151.0,0.00021918,2]
[422034637,1778506243000,-162.0,0.00022,2]
[422034634,1778506243000,-1490.0,0.00022,2]
[422034631,1778506243000,-176.0,0.00022,2]
[422034635,1778506243000,-153.0,0.00022,2]
[422034636,1778506243000,-176.0,0.00022,2]
[422034632,1778506243000,-162.97152326,0.00022,2]
[422034633,1778506243000,-728.0,0.00022,2]
[422034614,1778506243000,-176.0,0.00021,2]
[422034608,1778506243000,-176.0,0.00021,2]
[422034638,1778506243000,-385.0,0.00022,2]
[422034609,1778506243000,-152.0,0.00021,2]
[422034591,1778506243000,-176.0,0.0002,2]
[422034588,1778506243000,-3000.0,0.00019912,2]
[422034584,1778506243000,-209.745422,0.00019912,2]
[422034586,1778506243000,-209.745422,0.00019912,2]
[422034581,1778506243000,-5530.0,0.000199,5]
[422034580,1778506243000,-152.0,0.0001981,2]
[422034585,1778506243000,-209.745422,0.00019912,2]
[422034607,1778506243000,-789.16,0.00020871,2]
[422034583,1778506243000,-2231.65976084,0.00019902,2]
[422034582,1778506243000,-200.0,0.00019902,2]
[422034587,1778506243000,-209.745422,0.00019912,2]
[422034592,1778506243000,-152.0,0.0002,2]
[422034597,1778506243000,-176.0,0.0002,2]
[422034578,1778506243000,-201.75301911,0.00019798,2]
[422034598,1778506243000,-385.0,0.0002,2]
[422034596,1778506243000,-153.0,0.0002,2]